[Event "Titled Tuesday Blitz July 25 Late 2023"]
[White "Rasulov, Vugar"]
[Black "Kollars, Dmitrij"]
[WhiteFideId "13402390"]
[BlackFideId "12909572"]
[WhiteElo "2876"]
[BlackElo "2986"]
[Result "0-1"]
[Round "8"]
[TimeControl "180+2"]
[Date "2023.07.25"]
[WhiteClock "0:00:00"]
[BlackClock "0:00:13"]
[Board "12"]

1. d4 {[%clk 0:03:00]}  Nf6 {[%clk 0:02:58]} 2. c4 {[%clk 0:03:01]}  e6 {[%clk 0:02:59]} 3. Nc3 {[%clk 0:03:02]}  Bb4 {[%clk 0:02:59]} 4. e3 {[%clk 0:03:02]}  O-O {[%clk 0:02:59]} 5. Ne2 {[%clk 0:03:03]}  Re8 {[%clk 0:02:58]} 6. a3 {[%clk 0:03:02]}  Bf8 {[%clk 0:02:59]} 7. Ng3 {[%clk 0:03:02]}  d5 {[%clk 0:02:58]} 8. Be2 {[%clk 0:03:02]}  dxc4 {[%clk 0:02:54]} 9. O-O {[%clk 0:03:01]}  a6 {[%clk 0:02:51]} 10. Bxc4 {[%clk 0:02:58]}  b5 {[%clk 0:02:52]} 11. Be2 {[%clk 0:02:58]}  Bb7 {[%clk 0:02:52]} 12. Bf3 {[%clk 0:02:58]}  Qc8 {[%clk 0:02:49]} 13. b4 {[%clk 0:02:52]}  Nbd7 {[%clk 0:02:47]} 14. Bb2 {[%clk 0:02:50]}  Nb6 {[%clk 0:02:31]} 15. Nce4 {[%clk 0:02:37]}  Nxe4 {[%clk 0:02:26]} 16. Nxe4 {[%clk 0:02:38]}  Nc4 {[%clk 0:02:27]} 17. Bc3 {[%clk 0:02:38]}  Bd5 {[%clk 0:02:23]} 18. Qc2 {[%clk 0:02:20]}  f5 {[%clk 0:02:15]} 19. Nc5 {[%clk 0:02:13]}  Bxf3 {[%clk 0:02:13]} 20. gxf3 {[%clk 0:02:14]}  Bxc5 {[%clk 0:02:12]} 21. dxc5 {[%clk 0:02:08]}  e5 {[%clk 0:02:12]} 22. Kh1 {[%clk 0:02:08]}  Qe6 {[%clk 0:02:04]} 23. Rg1 {[%clk 0:02:07]}  Rad8 {[%clk 0:02:02]} 24. a4 {[%clk 0:02:03]}  g6 {[%clk 0:01:57]} 25. axb5 {[%clk 0:02:02]}  axb5 {[%clk 0:01:58]} 26. Rg5 {[%clk 0:01:56]}  Kf7 {[%clk 0:01:44]} 27. Rag1 {[%clk 0:01:49]}  Ke7 {[%clk 0:01:36]} 28. h4 {[%clk 0:01:40]}  Qd5 {[%clk 0:01:34]} 29. e4 {[%clk 0:01:27]}  Qd3 {[%clk 0:01:33]} 30. Qxd3 {[%clk 0:00:59]}  Rxd3 {[%clk 0:01:34]} 31. Ba1 {[%clk 0:00:54]}  Rxf3 {[%clk 0:01:30]} 32. exf5 {[%clk 0:00:54]}  Rxf5 {[%clk 0:01:31]} 33. Rxf5 {[%clk 0:00:49]}  gxf5 {[%clk 0:01:32]} 34. Rg7+ {[%clk 0:00:49]}  Ke6 {[%clk 0:01:33]} 35. Bc3 {[%clk 0:00:29]}  Re7 {[%clk 0:01:33]} 36. Rg8 {[%clk 0:00:29]}  Rd7 {[%clk 0:01:33]} 37. Kg2 {[%clk 0:00:27]}  Rd3 {[%clk 0:01:21]} 38. Be1 {[%clk 0:00:26]}  Rd1 {[%clk 0:01:19]} 39. Kf1 {[%clk 0:00:25]}  f4 {[%clk 0:01:17]} 40. Ke2 {[%clk 0:00:19]}  Rb1 {[%clk 0:01:17]} 41. Bc3 {[%clk 0:00:19]}  Rc1 {[%clk 0:00:50]} 42. Kd3 {[%clk 0:00:17]}  e4+ {[%clk 0:00:41]} 43. Kd4 {[%clk 0:00:18]}  e3 {[%clk 0:00:42]} 44. fxe3 {[%clk 0:00:17]}  fxe3 {[%clk 0:00:43]} 45. Kd3 {[%clk 0:00:14]}  Rd1+ {[%clk 0:00:36]} 46. Ke2 {[%clk 0:00:14]}  Rh1 {[%clk 0:00:37]} 47. Rg7 {[%clk 0:00:09]}  Rh2+ {[%clk 0:00:35]} 48. Kd3 {[%clk 0:00:10]}  e2 {[%clk 0:00:26]} 49. Rxc7 {[%clk 0:00:05]}  Rh3+ {[%clk 0:00:25]} 50. Kxe2 {[%clk 0:00:06]}  Rxc3 {[%clk 0:00:25]} 51. Rxh7 {[%clk 0:00:06]}  Re3+ {[%clk 0:00:19]} 52. Kf2 {[%clk 0:00:06]}  Rb3 {[%clk 0:00:20]} 53. h5 {[%clk 0:00:07]}  Rxb4 {[%clk 0:00:18]} 54. h6 {[%clk 0:00:07]}  Ne5 {[%clk 0:00:17]} 55. Rh8 {[%clk 0:00:04]}  Nf7 {[%clk 0:00:15]} 56. Re8+ {[%clk 0:00:04]}  Kd7 {[%clk 0:00:15]} 57. Rg8 {[%clk 0:00:02]}  Nxh6 {[%clk 0:00:15]} 58. Rg7+ {[%clk 0:00:03]}  Kc8 {[%clk 0:00:16]} 59. Rg6 {[%clk 0:00:03]}  Nf5 {[%clk 0:00:15]} 60. Rf6 {[%clk 0:00:03]}  Nd4 {[%clk 0:00:14]} 61. Ke3 {[%clk 0:00:03]}  Nb3 {[%clk 0:00:13]} 62. c6 {[%clk 0:00:01]}  Kc7 {[%clk 0:00:12]} 63. Kd3 {[%clk 0:00:02]}  Rc4 {[%clk 0:00:13]} 64. Rf7+ {[%clk 0:00:00]}  Kxc6 {[%clk 0:00:13]} 0-1


[Site "https://www.chess.com"]

[Event "Titled Tuesday Blitz July 25 Late 2023"]
[White "Nihal Sarin"]
[Black "Tristan, Leonardo"]
[WhiteFideId "25092340"]
[BlackFideId "113816"]
[WhiteElo "3068"]
[BlackElo "2761"]
[Result "1-0"]
[Round "8"]
[TimeControl "180+2"]
[Date "2023.07.25"]
[WhiteClock "0:03:24"]
[BlackClock "0:00:17"]
[Board "15"]

1. e4 {[%clk 0:03:00]}  d5 {[%clk 0:03:00]} 2. exd5 {[%clk 0:03:01]}  Qxd5 {[%clk 0:03:01]} 3. Nc3 {[%clk 0:03:01]}  Qa5 {[%clk 0:03:01]} 4. d4 {[%clk 0:03:01]}  Nf6 {[%clk 0:03:02]} 5. Nf3 {[%clk 0:03:01]}  Bf5 {[%clk 0:03:02]} 6. Bc4 {[%clk 0:03:01]}  e6 {[%clk 0:03:02]} 7. O-O {[%clk 0:03:00]}  Bb4 {[%clk 0:03:02]} 8. Bd2 {[%clk 0:03:01]}  Nc6 {[%clk 0:03:02]} 9. a3 {[%clk 0:03:02]}  Bxc3 {[%clk 0:03:03]} 10. Bxc3 {[%clk 0:03:03]}  Qb6 {[%clk 0:03:03]} 11. Bb3 {[%clk 0:03:02]}  O-O {[%clk 0:03:03]} 12. Re1 {[%clk 0:03:03]}  Rad8 {[%clk 0:03:03]} 13. h3 {[%clk 0:03:03]}  Rfe8 {[%clk 0:03:03]} 14. Qe2 {[%clk 0:03:04]}  h6 {[%clk 0:02:53]} 15. Rad1 {[%clk 0:03:04]}  Be4 {[%clk 0:02:53]} 16. Ne5 {[%clk 0:03:03]}  Bd5 {[%clk 0:02:50]} 17. Ba4 {[%clk 0:03:04]}  Rf8 {[%clk 0:02:34]} 18. Bxc6 {[%clk 0:03:04]}  Bxc6 {[%clk 0:02:33]} 19. Bb4 {[%clk 0:03:05]}  Rfe8 {[%clk 0:02:32]} 20. Bc5 {[%clk 0:03:05]}  Qb5 {[%clk 0:02:27]} 21. c4 {[%clk 0:03:06]}  Qa6 {[%clk 0:01:31]} 22. Rd3 {[%clk 0:03:06]}  Nd7 {[%clk 0:01:21]} 23. Rg3 {[%clk 0:03:05]}  Nf6 {[%clk 0:01:09]} 24. Qe3 {[%clk 0:03:04]}  Nh5 {[%clk 0:00:59]} 25. Rg4 {[%clk 0:03:05]}  Nf6 {[%clk 0:00:59]} 26. Rh4 {[%clk 0:03:05]}  Nd7 {[%clk 0:00:47]} 27. Ng4 {[%clk 0:03:05]}  Nxc5 {[%clk 0:00:39]} 28. Nxh6+ {[%clk 0:03:05]}  Kf8 {[%clk 0:00:37]} 29. Nf5 {[%clk 0:03:05]}  f6 {[%clk 0:00:29]} 30. Nxg7 {[%clk 0:03:05]}  Ne4 {[%clk 0:00:09]} 31. Nxe8 {[%clk 0:03:05]}  Kxe8 {[%clk 0:00:08]} 32. Rxe4 {[%clk 0:03:05]}  Bxe4 {[%clk 0:00:07]} 33. Qxe4 {[%clk 0:03:05]}  Qxc4 {[%clk 0:00:08]} 34. Qxe6+ {[%clk 0:03:06]}  Qxe6 {[%clk 0:00:08]} 35. Rxe6+ {[%clk 0:03:07]}  Kf7 {[%clk 0:00:09]} 36. Re4 {[%clk 0:03:07]}  f5 {[%clk 0:00:09]} 37. Rf4 {[%clk 0:03:08]}  Ke6 {[%clk 0:00:09]} 38. g4 {[%clk 0:03:08]}  fxg4 {[%clk 0:00:09]} 39. hxg4 {[%clk 0:03:09]}  Kd5 {[%clk 0:00:10]} 40. Kg2 {[%clk 0:03:10]}  Kc4 {[%clk 0:00:11]} 41. Rf3 {[%clk 0:03:08]}  Rxd4 {[%clk 0:00:10]} 42. Kg3 {[%clk 0:03:09]}  c5 {[%clk 0:00:10]} 43. g5 {[%clk 0:03:10]}  b5 {[%clk 0:00:11]} 44. Rf4 {[%clk 0:03:09]}  Kb3 {[%clk 0:00:08]} 45. Rxd4 {[%clk 0:03:10]}  cxd4 {[%clk 0:00:09]} 46. g6 {[%clk 0:03:11]}  d3 {[%clk 0:00:10]} 47. g7 {[%clk 0:03:12]}  d2 {[%clk 0:00:10]} 48. g8=Q+ {[%clk 0:03:12]}  Kc2 {[%clk 0:00:10]} 49. Qg6+ {[%clk 0:03:12]}  Kc1 {[%clk 0:00:11]} 50. Qc6+ {[%clk 0:03:12]}  Kb1 {[%clk 0:00:10]} 51. Qd5 {[%clk 0:03:13]}  Kc1 {[%clk 0:00:11]} 52. f4 {[%clk 0:03:12]}  d1=Q {[%clk 0:00:10]} 53. Qxd1+ {[%clk 0:03:13]}  Kxd1 {[%clk 0:00:11]} 54. f5 {[%clk 0:03:14]}  Kc2 {[%clk 0:00:12]} 55. f6 {[%clk 0:03:15]}  Kxb2 {[%clk 0:00:12]} 56. f7 {[%clk 0:03:16]}  Kxa3 {[%clk 0:00:13]} 57. f8=Q+ {[%clk 0:03:16]}  b4 {[%clk 0:00:14]} 58. Qc5 {[%clk 0:03:17]}  a6 {[%clk 0:00:13]} 59. Qa5+ {[%clk 0:03:18]}  Kb3 {[%clk 0:00:13]} 60. Qxa6 {[%clk 0:03:18]}  Kc3 {[%clk 0:00:14]} 61. Qa1+ {[%clk 0:03:19]}  Kc2 {[%clk 0:00:14]} 62. Qa2+ {[%clk 0:03:19]}  Kc3 {[%clk 0:00:14]} 63. Qb1 {[%clk 0:03:20]}  b3 {[%clk 0:00:15]} 64. Kf2 {[%clk 0:03:21]}  b2 {[%clk 0:00:15]} 65. Ke3 {[%clk 0:03:22]}  Kb3 {[%clk 0:00:16]} 66. Kd4 {[%clk 0:03:22]}  Ka3 {[%clk 0:00:17]} 67. Kc4 {[%clk 0:03:23]}  Ka4 {[%clk 0:00:17]} 68. Qa2# {[%clk 0:03:24]} 1-0


[Site "https://www.chess.com"]

[Event "Titled Tuesday Blitz July 25 Late 2023"]
[White "Remizov, Yaroslav"]
[Black "Paravyan, David"]
[WhiteFideId "34134015"]
[BlackFideId "4194985"]
[WhiteElo "2747"]
[BlackElo "3004"]
[Result "0-1"]
[Round "8"]
[TimeControl "180+2"]
[Date "2023.07.25"]
[WhiteClock "0:00:00"]
[BlackClock "0:02:31"]
[Board "17"]

1. e4 {[%clk 0:03:00]}  e5 {[%clk 0:03:00]} 2. Nf3 {[%clk 0:02:59]}  Nf6 {[%clk 0:03:01]} 3. Nxe5 {[%clk 0:02:59]}  d6 {[%clk 0:03:01]} 4. Nf3 {[%clk 0:02:59]}  Nxe4 {[%clk 0:03:02]} 5. d3 {[%clk 0:02:59]}  Nf6 {[%clk 0:03:01]} 6. d4 {[%clk 0:03:00]}  d5 {[%clk 0:03:02]} 7. Bd3 {[%clk 0:02:59]}  Bd6 {[%clk 0:03:03]} 8. Qe2+ {[%clk 0:02:59]}  Be7 {[%clk 0:03:03]} 9. O-O {[%clk 0:02:56]}  O-O {[%clk 0:03:03]} 10. c3 {[%clk 0:02:56]}  Re8 {[%clk 0:03:02]} 11. h3 {[%clk 0:02:45]}  c5 {[%clk 0:03:02]} 12. Qc2 {[%clk 0:02:19]}  Nc6 {[%clk 0:03:01]} 13. dxc5 {[%clk 0:02:11]}  Bxc5 {[%clk 0:02:59]} 14. Nbd2 {[%clk 0:02:11]}  Bb6 {[%clk 0:02:57]} 15. Nb3 {[%clk 0:02:06]}  Ne4 {[%clk 0:02:56]} 16. Nfd4 {[%clk 0:01:56]}  Nxd4 {[%clk 0:02:54]} 17. Nxd4 {[%clk 0:01:53]}  Qd6 {[%clk 0:02:55]} 18. Re1 {[%clk 0:01:37]}  Bc7 {[%clk 0:02:53]} 19. Nf3 {[%clk 0:01:25]}  Qf6 {[%clk 0:02:51]} 20. Bg5 {[%clk 0:01:04]}  Qg6 {[%clk 0:02:49]} 21. c4 {[%clk 0:00:58]}  Bf5 {[%clk 0:02:45]} 22. cxd5 {[%clk 0:00:04]}  Nxg5 {[%clk 0:02:45]} 23. Nh4 {[%clk 0:00:04]}  Nxh3+ {[%clk 0:02:42]} 24. Kh1 {[%clk 0:00:04]}  Qd6 {[%clk 0:02:33]} 25. g3 {[%clk 0:00:02]}  Bxd3 {[%clk 0:02:32]} 26. Qa4 {[%clk 0:00:00]}  Qxd5+ {[%clk 0:02:31]} 0-1


[Site "https://www.chess.com"]

[Event "Titled Tuesday Blitz July 25 Late 2023"]
[White "Alex_Sahakyan2006"]
[Black "He, Anthony"]
[BlackFideId "2088215"]
[WhiteElo "2736"]
[BlackElo "2976"]
[Result "0-1"]
[Round "8"]
[TimeControl "180+2"]
[Date "2023.07.25"]
[WhiteClock "0:00:02"]
[BlackClock "0:02:10"]
[Board "19"]

1. Nh3 {[%clk 0:03:00]}  e5 {[%clk 0:02:59]} 2. d4 {[%clk 0:02:54]}  exd4 {[%clk 0:02:59]} 3. Qxd4 {[%clk 0:02:53]}  Nc6 {[%clk 0:02:59]} 4. Qd1 {[%clk 0:02:52]}  d5 {[%clk 0:02:59]} 5. Nf4 {[%clk 0:02:53]}  Nf6 {[%clk 0:02:58]} 6. e3 {[%clk 0:02:52]}  Bd6 {[%clk 0:02:58]} 7. Bb5 {[%clk 0:02:49]}  O-O {[%clk 0:02:57]} 8. O-O {[%clk 0:02:49]}  Ne7 {[%clk 0:02:55]} 9. Be2 {[%clk 0:02:45]}  Bf5 {[%clk 0:02:53]} 10. c4 {[%clk 0:02:40]}  Bxf4 {[%clk 0:02:47]} 11. exf4 {[%clk 0:02:38]}  d4 {[%clk 0:02:48]} 12. Bd3 {[%clk 0:02:37]}  Qd7 {[%clk 0:02:44]} 13. Na3 {[%clk 0:02:31]}  c5 {[%clk 0:02:43]} 14. Nc2 {[%clk 0:02:24]}  Rfe8 {[%clk 0:02:42]} 15. b4 {[%clk 0:02:21]}  b6 {[%clk 0:02:39]} 16. bxc5 {[%clk 0:02:11]}  bxc5 {[%clk 0:02:39]} 17. Re1 {[%clk 0:02:06]}  Ng6 {[%clk 0:02:36]} 18. Rb1 {[%clk 0:01:24]}  Rxe1+ {[%clk 0:02:34]} 19. Nxe1 {[%clk 0:01:20]}  Re8 {[%clk 0:02:34]} 20. Bd2 {[%clk 0:01:07]}  h6 {[%clk 0:02:34]} 21. Qc2 {[%clk 0:00:57]}  Bxd3 {[%clk 0:02:33]} 22. Nxd3 {[%clk 0:00:58]}  Qf5 {[%clk 0:02:33]} 23. Re1 {[%clk 0:00:51]}  Rb8 {[%clk 0:02:30]} 24. h3 {[%clk 0:00:43]}  Nh4 {[%clk 0:02:28]} 25. Rb1 {[%clk 0:00:27]}  Re8 {[%clk 0:02:13]} 26. Re1 {[%clk 0:00:27]}  Rc8 {[%clk 0:02:08]} 27. Re5 {[%clk 0:00:21]}  Qg6 {[%clk 0:02:08]} 28. Ne1 {[%clk 0:00:05]}  Nf3+ {[%clk 0:02:09]} 29. Kf1 {[%clk 0:00:03]}  Qxc2 {[%clk 0:02:09]} 30. Nxc2 {[%clk 0:00:02]}  Nxd2+ {[%clk 0:02:10]} 0-1


[Site "https://www.chess.com"]

[Event "Titled Tuesday Blitz July 25 Late 2023"]
[White "Korchmar, Vasiliy"]
[Black "Anton Guijarro, David"]
[WhiteFideId "24131750"]
[BlackFideId "2285525"]
[WhiteElo "2701"]
[BlackElo "2969"]
[Result "0-1"]
[Round "8"]
[TimeControl "180+2"]
[Date "2023.07.25"]
[WhiteClock "0:00:00"]
[BlackClock "0:00:08"]
[Board "20"]

1. e4 {[%clk 0:03:00]}  c6 {[%clk 0:03:00]} 2. d4 {[%clk 0:02:59]}  a6 {[%clk 0:03:01]} 3. Bd3 {[%clk 0:02:56]}  d5 {[%clk 0:03:01]} 4. e5 {[%clk 0:02:56]}  c5 {[%clk 0:03:02]} 5. c3 {[%clk 0:02:56]}  Nc6 {[%clk 0:03:02]} 6. Ne2 {[%clk 0:02:55]}  g6 {[%clk 0:02:23]} 7. O-O {[%clk 0:02:53]}  Bg7 {[%clk 0:02:23]} 8. Bg5 {[%clk 0:02:43]}  Nh6 {[%clk 0:02:18]} 9. Ng3 {[%clk 0:02:38]}  cxd4 {[%clk 0:02:15]} 10. cxd4 {[%clk 0:02:13]}  Nxd4 {[%clk 0:02:09]} 11. Qa4+ {[%clk 0:01:58]}  Nc6 {[%clk 0:02:06]} 12. Re1 {[%clk 0:01:52]}  O-O {[%clk 0:01:38]} 13. Qh4 {[%clk 0:01:44]}  Ng4 {[%clk 0:01:37]} 14. e6 {[%clk 0:01:31]}  Bxe6 {[%clk 0:01:28]} 15. Rxe6 {[%clk 0:01:28]}  Nxf2 {[%clk 0:01:17]} 16. Re3 {[%clk 0:00:26]}  Nxd3 {[%clk 0:01:13]} 17. Nf5 {[%clk 0:00:27]}  Qb6 {[%clk 0:00:19]} 18. Nxg7 {[%clk 0:00:18]}  Qxb2 {[%clk 0:00:12]} 19. Rh3 {[%clk 0:00:11]}  Qxg7 {[%clk 0:00:12]} 20. Bd2 {[%clk 0:00:01]}  h5 {[%clk 0:00:08]} 21. Bc3 {[%clk 0:00:01]}  d4 {[%clk 0:00:09]} 22. Bd2 {[%clk 0:00:01]}  Nde5 {[%clk 0:00:09]} 23. Na3 {[%clk 0:00:00]}  Ng4 {[%clk 0:00:08]} 0-1


[Site "https://www.chess.com"]

[Event "Titled Tuesday Blitz July 25 Late 2023"]
[White "Barria Santos, Jose Guilherme"]
[Black "Bartel, Mateusz"]
[WhiteFideId "1939300"]
[BlackFideId "1112635"]
[WhiteElo "2614"]
[BlackElo "2836"]
[Result "0-1"]
[Round "8"]
[TimeControl "180+2"]
[Date "2023.07.25"]
[WhiteClock "0:00:00"]
[BlackClock "0:00:09"]
[Board "26"]

1. e4 {[%clk 0:03:00]}  g6 {[%clk 0:02:48]} 2. d4 {[%clk 0:03:00]}  Bg7 {[%clk 0:02:48]} 3. Be3 {[%clk 0:03:00]}  c5 {[%clk 0:02:39]} 4. Nc3 {[%clk 0:03:00]}  cxd4 {[%clk 0:02:32]} 5. Bxd4 {[%clk 0:03:01]}  Nf6 {[%clk 0:02:32]} 6. Nf3 {[%clk 0:02:51]}  Nc6 {[%clk 0:02:28]} 7. Be3 {[%clk 0:02:45]}  O-O {[%clk 0:02:23]} 8. h3 {[%clk 0:02:41]}  d6 {[%clk 0:01:49]} 9. Qd2 {[%clk 0:02:38]}  Be6 {[%clk 0:01:37]} 10. Bh6 {[%clk 0:02:33]}  Rc8 {[%clk 0:01:37]} 11. h4 {[%clk 0:02:26]}  Qa5 {[%clk 0:01:33]} 12. Bd3 {[%clk 0:02:04]}  Bxh6 {[%clk 0:01:09]} 13. Qxh6 {[%clk 0:02:05]}  Ng4 {[%clk 0:01:09]} 14. Qd2 {[%clk 0:02:00]}  h5 {[%clk 0:01:09]} 15. Ng5 {[%clk 0:01:59]}  Nce5 {[%clk 0:01:03]} 16. f3 {[%clk 0:01:54]}  Nf6 {[%clk 0:01:00]} 17. Nxe6 {[%clk 0:01:44]}  fxe6 {[%clk 0:01:01]} 18. Be2 {[%clk 0:01:45]}  Nc4 {[%clk 0:00:57]} 19. Bxc4 {[%clk 0:01:40]}  Rxc4 {[%clk 0:00:58]} 20. Ne2 {[%clk 0:01:35]}  Qe5 {[%clk 0:00:50]} 21. O-O-O {[%clk 0:01:31]}  Rfc8 {[%clk 0:00:48]} 22. c3 {[%clk 0:01:31]}  b5 {[%clk 0:00:46]} 23. Kb1 {[%clk 0:01:31]}  a5 {[%clk 0:00:34]} 24. Qg5 {[%clk 0:01:18]}  Qxg5 {[%clk 0:00:30]} 25. hxg5 {[%clk 0:01:19]}  Nh7 {[%clk 0:00:29]} 26. Nf4 {[%clk 0:01:20]}  Kf7 {[%clk 0:00:28]} 27. Nh3 {[%clk 0:01:18]}  e5 {[%clk 0:00:22]} 28. Rd5 {[%clk 0:01:17]}  Rb8 {[%clk 0:00:20]} 29. Kc2 {[%clk 0:01:02]}  Nf8 {[%clk 0:00:21]} 30. b3 {[%clk 0:00:55]}  Rc6 {[%clk 0:00:20]} 31. f4 {[%clk 0:00:52]}  exf4 {[%clk 0:00:19]} 32. Nxf4 {[%clk 0:00:52]}  Ne6 {[%clk 0:00:20]} 33. Nxe6 {[%clk 0:00:49]}  Kxe6 {[%clk 0:00:21]} 34. Rf1 {[%clk 0:00:44]}  a4 {[%clk 0:00:20]} 35. Kd3 {[%clk 0:00:31]}  axb3 {[%clk 0:00:16]} 36. axb3 {[%clk 0:00:32]}  Rbc8 {[%clk 0:00:17]} 37. Rc1 {[%clk 0:00:33]}  Rc5 {[%clk 0:00:17]} 38. c4 {[%clk 0:00:27]}  Kd7 {[%clk 0:00:13]} 39. Kd4 {[%clk 0:00:21]}  bxc4 {[%clk 0:00:12]} 40. Rxc4 {[%clk 0:00:18]}  Rxd5+ {[%clk 0:00:11]} 41. exd5 {[%clk 0:00:19]}  Rf8 {[%clk 0:00:11]} 42. Ra4 {[%clk 0:00:17]}  Rf4+ {[%clk 0:00:11]} 43. Kc3 {[%clk 0:00:15]}  Rf5 {[%clk 0:00:11]} 44. Ra7+ {[%clk 0:00:14]}  Ke8 {[%clk 0:00:12]} 45. Kc4 {[%clk 0:00:12]}  Rxg5 {[%clk 0:00:11]} 46. b4 {[%clk 0:00:12]}  Rxg2 {[%clk 0:00:11]} 47. b5 {[%clk 0:00:11]}  Rb2 {[%clk 0:00:11]} 48. Ra3 {[%clk 0:00:00]}  h4 {[%clk 0:00:09]} 0-1


[Site "https://www.chess.com"]

[Event "Titled Tuesday Blitz July 25 Late 2023"]
[White "Cappelletto, Joshuaede"]
[Black "Donchenko, Alexander"]
[WhiteFideId "2824383"]
[BlackFideId "24603295"]
[WhiteElo "2593"]
[BlackElo "2824"]
[Result "1/2-1/2"]
[Round "8"]
[TimeControl "180+2"]
[Date "2023.07.25"]
[WhiteClock "0:00:13"]
[BlackClock "0:00:24"]
[Board "27"]

1. e4 {[%clk 0:03:00]}  c6 {[%clk 0:03:00]} 2. d4 {[%clk 0:02:58]}  d5 {[%clk 0:03:01]} 3. e5 {[%clk 0:02:59]}  Bf5 {[%clk 0:03:01]} 4. h4 {[%clk 0:02:59]}  h5 {[%clk 0:03:01]} 5. c4 {[%clk 0:02:59]}  e6 {[%clk 0:03:01]} 6. Nc3 {[%clk 0:02:59]}  Ne7 {[%clk 0:03:00]} 7. Nge2 {[%clk 0:02:54]}  Nd7 {[%clk 0:03:00]} 8. Ng3 {[%clk 0:02:55]}  Bg6 {[%clk 0:03:00]} 9. cxd5 {[%clk 0:02:55]}  Nxd5 {[%clk 0:03:00]} 10. Be2 {[%clk 0:02:55]}  Bb4 {[%clk 0:02:58]} 11. Bd2 {[%clk 0:02:26]}  Qa5 {[%clk 0:02:53]} 12. Nxd5 {[%clk 0:02:18]}  cxd5 {[%clk 0:02:50]} 13. Bxb4 {[%clk 0:02:16]}  Qxb4+ {[%clk 0:02:51]} 14. Qd2 {[%clk 0:02:17]}  Qb6 {[%clk 0:02:43]} 15. Rc1 {[%clk 0:02:16]}  a6 {[%clk 0:02:37]} 16. O-O {[%clk 0:02:12]}  Qd8 {[%clk 0:02:34]} 17. Qf4 {[%clk 0:02:11]}  Nb8 {[%clk 0:02:34]} 18. Rc3 {[%clk 0:02:00]}  Nc6 {[%clk 0:02:34]} 19. Rfc1 {[%clk 0:02:01]}  Qb6 {[%clk 0:02:34]} 20. Rd1 {[%clk 0:01:52]}  Rc8 {[%clk 0:02:27]} 21. Qg5 {[%clk 0:01:44]}  Qd8 {[%clk 0:02:27]} 22. Qf4 {[%clk 0:01:43]}  Ne7 {[%clk 0:02:23]} 23. Rxc8 {[%clk 0:01:39]}  Qxc8 {[%clk 0:02:24]} 24. Qg5 {[%clk 0:01:32]}  Nf5 {[%clk 0:02:16]} 25. Nxf5 {[%clk 0:01:28]}  exf5 {[%clk 0:02:16]} 26. Rc1 {[%clk 0:01:25]}  Qd8 {[%clk 0:02:16]} 27. Qf4 {[%clk 0:01:21]}  O-O {[%clk 0:02:15]} 28. Bf3 {[%clk 0:01:21]}  Qa5 {[%clk 0:02:00]} 29. Qg5 {[%clk 0:01:11]}  Re8 {[%clk 0:01:54]} 30. Kh2 {[%clk 0:01:04]}  Qxa2 {[%clk 0:01:41]} 31. Rc5 {[%clk 0:00:52]}  Qxb2 {[%clk 0:01:40]} 32. Rxd5 {[%clk 0:00:52]}  Qxf2 {[%clk 0:01:36]} 33. Rd7 {[%clk 0:00:48]}  b5 {[%clk 0:01:24]} 34. Bd5 {[%clk 0:00:41]}  b4 {[%clk 0:01:06]} 35. e6 {[%clk 0:00:17]}  fxe6 {[%clk 0:01:00]} 36. Qxg6 {[%clk 0:00:17]}  Qxh4+ {[%clk 0:00:56]} 37. Kg1 {[%clk 0:00:17]}  Qe1+ {[%clk 0:00:46]} 38. Kh2 {[%clk 0:00:17]}  Qh4+ {[%clk 0:00:46]} 39. Kg1 {[%clk 0:00:17]}  Qxd4+ {[%clk 0:00:46]} 40. Kh1 {[%clk 0:00:13]}  Qh4+ {[%clk 0:00:23]} 41. Kg1 {[%clk 0:00:13]}  Qd4+ {[%clk 0:00:24]} 42. Kh1 {[%clk 0:00:13]}  Qh4+ {[%clk 0:00:21]} 43. Kg1 {[%clk 0:00:13]}  Qe1+ {[%clk 0:00:22]} 44. Kh2 {[%clk 0:00:13]}  Qe5+ {[%clk 0:00:22]} 45. Kh1 {[%clk 0:00:12]}  exd5 {[%clk 0:00:21]} 46. Qf7+ {[%clk 0:00:11]}  Kh7 {[%clk 0:00:22]} 47. Qxh5+ {[%clk 0:00:12]}  Kg8 {[%clk 0:00:22]} 48. Qf7+ {[%clk 0:00:12]}  Kh7 {[%clk 0:00:23]} 49. Qh5+ {[%clk 0:00:12]}  Kg8 {[%clk 0:00:24]} 50. Qf7+ {[%clk 0:00:12]}  Kh7 {[%clk 0:00:24]} 51. Qh5+ {[%clk 0:00:13]} 1/2-1/2


[Site "https://www.chess.com"]

[Event "Titled Tuesday Blitz July 25 Late 2023"]
[White "Ozates, Tuna"]
[Black "Pulpan, Jakub"]
[WhiteFideId "6354521"]
[BlackFideId "302759"]
[WhiteElo "2590"]
[BlackElo "2795"]
[Result "1-0"]
[Round "8"]
[TimeControl "180+2"]
[Date "2023.07.25"]
[WhiteClock "0:00:54"]
[BlackClock "0:00:00"]
[Board "28"]

1. e4 {[%clk 0:03:00]}  e5 {[%clk 0:02:53]} 2. Nf3 {[%clk 0:02:59]}  Nc6 {[%clk 0:02:52]} 3. Bb5 {[%clk 0:02:58]}  Nf6 {[%clk 0:02:52]} 4. d3 {[%clk 0:02:58]}  Bc5 {[%clk 0:02:50]} 5. O-O {[%clk 0:02:58]}  Nd4 {[%clk 0:02:51]} 6. Nxd4 {[%clk 0:02:54]}  Bxd4 {[%clk 0:02:51]} 7. c3 {[%clk 0:02:54]}  Bb6 {[%clk 0:02:51]} 8. Bg5 {[%clk 0:02:50]}  c6 {[%clk 0:02:51]} 9. Ba4 {[%clk 0:02:50]}  h6 {[%clk 0:02:50]} 10. Bh4 {[%clk 0:02:50]}  g5 {[%clk 0:02:50]} 11. Bg3 {[%clk 0:02:50]}  d6 {[%clk 0:02:51]} 12. Nd2 {[%clk 0:02:50]}  h5 {[%clk 0:02:52]} 13. h3 {[%clk 0:02:35]}  h4 {[%clk 0:02:51]} 14. Bh2 {[%clk 0:02:35]}  g4 {[%clk 0:02:52]} 15. hxg4 {[%clk 0:02:35]}  Nxg4 {[%clk 0:02:52]} 16. Qf3 {[%clk 0:02:25]}  Qg5 {[%clk 0:02:21]} 17. Nc4 {[%clk 0:02:16]}  Bc7 {[%clk 0:01:23]} 18. Ne3 {[%clk 0:02:10]}  Nxh2 {[%clk 0:01:09]} 19. Kxh2 {[%clk 0:02:08]}  Bd7 {[%clk 0:01:10]} 20. b4 {[%clk 0:01:59]}  O-O-O {[%clk 0:01:02]} 21. Bb3 {[%clk 0:01:58]}  Rdg8 {[%clk 0:00:59]} 22. a4 {[%clk 0:01:55]}  Rg6 {[%clk 0:00:56]} 23. b5 {[%clk 0:01:54]}  Rf6 {[%clk 0:00:55]} 24. Qe2 {[%clk 0:01:48]}  Bb6 {[%clk 0:00:47]} 25. bxc6 {[%clk 0:01:44]}  bxc6 {[%clk 0:00:47]} 26. a5 {[%clk 0:01:41]}  Bc5 {[%clk 0:00:31]} 27. Bc4 {[%clk 0:01:25]}  Rg6 {[%clk 0:00:28]} 28. Rab1 {[%clk 0:01:15]}  Qf4+ {[%clk 0:00:05]} 29. Kh1 {[%clk 0:01:07]}  Rhg8 {[%clk 0:00:00]} 30. Bxf7 {[%clk 0:00:54]} 1-0


[Site "https://www.chess.com"]